Cogmind - Beta 10.2 @@@ ROGUE MODE // 2020.11.30 @ 11:00:14 // Halloween2020/ForbiddenLore Player: blelm Result: Destroyed by 7V-RTL with Railgun Performance ------------- Evolutions (1) 500 Regions Visited (6) 1200 Robots Destroyed (39) 195 Value Destroyed (746) 746 Prototype IDs (27) 540 Alien Tech Used (0) 0 Bonus (296) 296 TOTAL SCORE: 3477 Bonus ------- Follower Combat Kills 32 Aligned with FarCom 300 Friendly Fire -36 Cogmind --------- Core Integrity 0/400 Matter 155/300 Energy 265/265 System Corruption 0% Temperature Cool (43) Movement Core (150) Ox2 Location -8/Mines Parts ------- > --- POWER (1) -------- Improved Ion Engine > --- PROPULSION (2) --- (None) > --- UTILITY (4) ------ (None) > --- WEAPON (2) ------- (None) > --- INVENTORY (4) ---- Humpback Humpback Peak State ------------ > --- POWER ------------ Heavy Ion Engine > --- PROPULSION ------- Light Treads Compact Wheel > --- UTILITY ---------- Humpback Advanced Targeting Computer Medium Armor Plating > --- WEAPON ----------- Improved EM Shotgun Improved EM Shotgun > --- INVENTORY -------- Improved Ion Engine Light Treads Cooling System Large Storage Unit Large Storage Unit Large Storage Unit Humpback Humpback High-capacity Battery High-capacity Matter Pod Experimental Sensor Array Advanced Targeting Computer Medium Armor Plating Hardened Light Armor Plating Improved EM Shotgun EM Pulse Cannon Advanced Beam Cannon Rocket Launcher Mini Grenade Launcher Katana [Rating: 22] Favorites ----------- Power Heavy Ion Engine Engine Heavy Ion Engine Propulsion Light Treads Treads Light Treads Leg Aluminum Leg Wheel Compact Wheel Utility Large Storage Unit Device Cooling System Storage Large Storage Unit Processor Advanced Targeting Computer Protection Medium Armor Plating Weapon Assault Rifle Energy Gun Improved EM Shotgun Energy Cannon Advanced Beam Cannon Ballistic Gun Assault Rifle Launcher Rocket Launcher Special Weapon Mining Laser Slashing Weapon Katana Build | -11 -10 -10 -9 -9 -9 -8 ------- Run | Scr Mat Min Mat Min Exi Min Slots Evolved 2 | . . . 2 . . . Power . | . . . . . . . Propulsion . | . . . . . . . Utility 2 | . . . 2 . . . Weapon . | . . . . . . . Parts Attached 44 | 3 2 4 23 1 3 8 Power 3 | . . 1 1 . . 1 Engine 3 | . . 1 1 . . 1 Core . | . . . . . . . Reactor . | . . . . . . . Propulsion 5 | 2 . . 2 . . 1 Treads 3 | 1 . . 1 . . 1 Leg . | . . . . . . . Wheel 2 | 1 . . 1 . . . Hover . | . . . . . . . Flight . | . . . . . . . Utility 12 | 1 2 . 5 . 2 2 Device 1 | . . . . . . 1 Storage 4 | 1 2 . . . 1 . Processor 1 | . . . 1 . . . Hackware . | . . . . . . . Protection 6 | . . . 4 . 1 1 Artifact . | . . . . . . . Weapon 24 | . . 3 15 1 1 4 Energy Gun 6 | . . . 3 . . 3 Energy Cannon 4 | . . . 2 . 1 1 Ballistic Gun 7 | . . 2 5 . . . Ballistic Cannon . | . . . . . . . Launcher 2 | . . 1 . 1 . . Special Weapon 4 | . . . 4 . . . Impact Weapon . | . . . . . . . Slashing Weapon 1 | . . . 1 . . . Piercing Weapon . | . . . . . . . Special Melee Weapon . | . . . . . . . Unidentified Prototypes 4 | . . . 4 . . . Parts Lost 13 | . . . 1 . . 12 Power 1 | . . . . . . 1 Propulsion 4 | . . . 1 . . 3 Utility 4 | . . . . . . 4 Weapon 4 | . . . . . . 4 Highest Loss Streak 12 | . . . 1 . . 12 Average Slot Usage (%) 97 | . 100 100 99 100 96 79 Engine 11 | . 14 14 11 11 11 11 Treads 11 | . 14 14 11 11 11 12 Wheel 11 | . 14 14 10 11 11 5 Storage 22 | . 28 28 22 22 18 10 Processor 7 | . . . 9 11 11 7 Protection 8 | . . . 12 11 10 10 Energy Gun 7 | . 14 11 1 11 9 17 Energy Cannon 3 | . . . 8 . 1 1 Ballistic Gun 8 | . 14 15 10 . . . Launcher 2 | . . . . 3 11 . Naked Turns . | . . . . . . . Heaviest Build 111 | 15 39 43 54 54 111 101 Greatest Support 20 | 20 16 16 16 16 16 16 Greatest Overweight (x) 6 | 4 2 2 3 3 6 6 Average Overweight (x) 2 | . 1 2 2 3 3 6 Largest Inventory Capacity 30 | 8 16 16 16 16 30 24 Average Capacity 16 | 6 13 16 16 16 18 22 Most Carried 22 | 6 6 9 16 16 22 22 Average Carried 13 | 5 4 7 14 16 17 18 Final Capacity 24 | 8 16 16 16 16 24 4 Final Carried 22 | 4 5 9 16 16 22 4 Class Distribution -------------------- 88% | Mutant 11% | Hauler-Mutant Dominant Class ---------------- Mutant | -10/Materials Mutant | -10/Mines Mutant | -9/Materials Mutant | -9/Mines Mutant | -9/Exiles Hauler-Mutant | -8/Mines Resources | -11 -10 -10 -9 -9 -9 -8 ----------- Run | Scr Mat Min Mat Min Exi Min Matter Collected 948 | 251 . 53 593 21 30 . Remotely . | . . . . . . . Salvage Created 1267 | 123 . 90 1032 22 . . Parts 95 | 5 . 10 76 4 . . Haulers Intercepted 4 | . . . 4 . . . Recyclers Shooed 4 | . . 1 3 . . . Parts Field Recycled . | . . . . . . . Retrieved Matter . | . . . . . . . Parts Self-Destructed . | . . . . . . . Prevented . | . . . . . . . Kills | -11 -10 -10 -9 -9 -9 -8 ------- Run | Scr Mat Min Mat Min Exi Min Combat Hostiles Destroyed 25 | . . 4 18 3 . . Guns 4 | . . . 4 . . . Cannons 14 | . . . 14 . . . AOE 7 | . . 4 . 3 . . Classes Destroyed 10 | 2 . 2 6 . . . Worker 3 | . . . 2 1 . . Builder 1 | . . . 1 . . . Tunneler 1 | 1 . . . . . . Hauler 4 | . . . 4 . . . Recycler 3 | 1 . . 2 . . . Watcher 2 | . . . 2 . . . Swarmer 12 | . . 2 7 3 . . Grunt 7 | . . 2 5 . . . Duelist 1 | . . . 1 . . . Sentry 5 | . . . 5 . . . Best Kill Streak 6 | 1 . 2 6 4 . . Combat Bots Only 5 | . . 2 5 3 . . Max Kills in Single Turn 4 | 1 . 2 2 4 . . Gunslinging . | . . . . . . . Exploded 3 | . . 2 . 3 . . Melee . | . . . . . . . Uniques/NPCs Destroyed . | . . . . . . . Combat | -11 -10 -10 -9 -9 -9 -8 -------- Run | Scr Mat Min Mat Min Exi Min Damage Taken 2201 | . . 51 500 20 . 1630 Core 406 | . . 6 86 . . 314 Absorbed by Shields . | . . . . . . . Core Remaining (%) 98 | 100 . 97 . . . . Volleys Fired 119 | 7 . 8 82 1 2 19 Largest 2 | 2 . 2 2 1 1 2 Hottest 113 | 60 . 60 113 33 68 108 Shots Fired 220 | 14 . 12 154 1 2 37 Gun 143 | 14 . 10 87 . 1 31 Cannon 67 | . . . 60 . 1 6 Launcher 3 | . . 2 . 1 . . Special 7 | . . . 7 . . . Kinetic 100 | 7 . 8 85 . . . Thermal 64 | . . . 63 . 1 . Explosive 3 | . . 2 . 1 . . Electromagnetic 53 | 7 . 2 6 . 1 37 Robot Hit Streak 17 | 6 . 7 17 . . 12 Robot Miss Streak 4 | 2 . 3 4 . . 2 Penetration Max . | . . . . . . . Secondary Targets 1 | . . . 1 . . . Max Gunslinging Chain 1 | . . . 1 . . . Shots Hit Robots 141 | 10 . 6 89 1 . 35 Core Hits 55 | 3 . 9 37 4 . 2 Critical Hits 9 | . . . 9 . . . Critical Kills 3 | . . . 3 . . . Critical Parts Destroyed 6 | . . . 6 . . . Melee Attacks 2 | . . . 1 1 . . Impact . | . . . . . . . Slashing 2 | . . . 1 1 . . Piercing . | . . . . . . . Sneak Attacks 1 | . . . . 1 . . Combat Hostiles . | . . . . . . . Follow-up Attacks . | . . . . . . . Damage Inflicted 2448 | 137 . 339 1588 257 . 127 Guns 911 | 137 . 64 598 . . 112 Cannons 1005 | . . . 990 . . 15 Explosions 438 | . . 270 . 168 . . Melee 89 | . . . . 89 . . Ramming 5 | . . 5 . . . . Kinetic 672 | 83 . 36 553 . . . Thermal 1011 | . . 112 899 . . . Explosive 326 | . . 158 . 168 . . Electromagnetic 345 | 54 . 28 136 . . 127 Impact . | . . . . . . . Slashing 89 | . . . . 89 . . Piercing . | . . . . . . . Highest Corruption . | . . . . . . . Average Corruption . | . . . . . . . Corruption Purged . | . . . . . . . Overload Shots . | . . . . . . . Overflow Damage 67 | . . 16 2 49 . . Projectiles 2 | . . . 2 . . . Explosions 16 | . . 16 . . . . Melee 49 | . . . . 49 . . Knockbacks . | . . . . . . . Impact . | . . . . . . . Kinetic . | . . . . . . . Secondary . | . . . . . . . Self-Inflicted Damage 12 | . . 12 . . . . Shots 1 | . . 1 . . . . Rammed 1 | . . 1 . . . . Targets Rammed 1 | . . 1 . . . . Kicked . | . . . . . . . Crushed . | . . . . . . . Highest Temperature 629 | 20 . . 300 . 30 629 Average Temperature 147 | 20 . . 88 . 13 344 Received Heat Transfer 342 | . . . 81 . . 261 Effects 25 | . . . 1 . . 24 Shutdowns 5 | . . . . . . 5 Energy Bleed 4 | . . . 1 . . 3 Interference 1 | . . . . . . 1 Matter Decay 4 | . . . . . . 4 Short Circuit 4 | . . . . . . 4 Damage (minor) 1 | . . . . . . 1 Damage (major) 4 | . . . . . . 4 Damage (core) 2 | . . . . . . 2 Siege Activations . | . . . . . . . Robots Corrupted . | . . . . . . . Combat Hostiles . | . . . . . . . Parts Fried . | . . . . . . . Impact Corruptions . | . . . . . . . Robots Melted . | . . . . . . . Combat Hostiles . | . . . . . . . Parts Melted . | . . . . . . . Heat Transferred 1678 | . . 50 1628 . . . Parts Sabotaged . | . . . . . . . Parts Stolen . | . . . . . . . Parts Stripped . | . . . . . . . Power Chain Reactions 1 | . . 1 . . . . Missiles Intercepted . | . . . . . . . Alert | -11 -10 -10 -9 -9 -9 -8 ------- Run | Scr Mat Min Mat Min Exi Min Peak Influence 358 | 10 6 108 358 214 . . Initial 139 | . 6 1 39 139 . . Average 129 | 7 6 38 214 160 . . Maximum Alert Level 1 | . . . 1 1 . . Low Security (%) 71 | 100 100 100 46 71 . 100 Level 1 28 | . . . 53 28 . . Level 2 . | . . . . . . . Level 3 . | . . . . . . . Level 4 . | . . . . . . . Level 5 . | . . . . . . . High Security . | . . . . . . . Max Security . | . . . . . . . Squads Dispatched 2 | . . . 2 . . . Investigation 1 | . . . 1 . . . Extermination . | . . . . . . . Reinforcement 1 | . . . 1 . . . Assault . | . . . . . . . Garrison . | . . . . . . . Intercept . | . . . . . . . Construction Impeded . | . . . . . . . Haulers Reinforced . | . . . . . . . Stealth | -11 -10 -10 -9 -9 -9 -8 --------- Run | Scr Mat Min Mat Min Exi Min Distress Signals 1 | . . . 1 . . . Communications Jammed . | . . . . . . . Distress Signals . | . . . . . . . Times Spotted 38 | . . 7 22 2 6 1 Peak Tracking Total 9 | . . 3 5 3 9 1 Tactical Retreats 2 | . . 1 1 . . . Traps | -11 -10 -10 -9 -9 -9 -8 ------- Run | Scr Mat Min Mat Min Exi Min Traps Triggered 1 | . . . 1 . . . Indirectly . | . . . . . . . Trap Hack Attempts . | . . . . . . . Triggered . | . . . . . . . Disarmed . | . . . . . . . Reprogrammed . | . . . . . . . Reused . | . . . . . . . Traps Extracted . | . . . . . . . Installed . | . . . . . . . Triggered . | . . . . . . . Machines | -11 -10 -10 -9 -9 -9 -8 ---------- Run | Scr Mat Min Mat Min Exi Min Machines Disabled 5 | . . 3 . . 2 . Max in Single Turn 2 | . . 2 . . 1 . Machines Sabotaged . | . . . . . . . Garrisons Compromised . | . . . . . . . Overloaded Fab Kills . | . . . . . . . Fab Network Shutdowns . | . . . . . . . Hacking | -11 -10 -10 -9 -9 -9 -8 --------- Run | Scr Mat Min Mat Min Exi Min Machines Accessed 13 | . . . 11 . 2 . Terminals 10 | . . . 10 . . . Fabricators . | . . . . . . . Repair Stations . | . . . . . . . Recycling Units . | . . . . . . . Scanalyzers 1 | . . . 1 . . . Garrison Access . | . . . . . . . Total Hacks 27 | . . . 25 . 2 . Successful 10 | . . . 8 . 2 . Failed 17 | . . . 17 . . . Catastrophic 2 | . . . 2 . . . Database Lockouts . | . . . . . . . Manual 12 | . . . 11 . 1 . Terminals 23 | . . . 23 . . . Fabricators . | . . . . . . . Repair Stations . | . . . . . . . Recycling Units . | . . . . . . . Scanalyzers 2 | . . . 2 . . . Garrison Access . | . . . . . . . Terminal Hacks 8 | . . . 6 . 2 . Record 1 | . . . . . 1 . Part Schematic 1 | . . . 1 . . . Branch Access Points 1 | . . . 1 . . . Terminal Index 1 | . . . 1 . . . Locate Traps 1 | . . . 1 . . . Registered Components 1 | . . . 1 . . . Zone Layout 1 | . . . 1 . . . EX-Prototype ID Bank 1 | . . . . . 1 . Fabricator Hacks . | . . . . . . . Repair Station Hacks . | . . . . . . . Recycling Unit Hacks . | . . . . . . . Scanalyzer . | . . . . . . . Garrison Access Hacks . | . . . . . . . Unauthorized Hacks 2 | . . . 2 . . . Terminals 2 | . . . 2 . . . Botnet 2 | . . . 2 . . . Fabricators . | . . . . . . . Repair Stations . | . . . . . . . Recycling Units . | . . . . . . . Scanalyzers . | . . . . . . . Garrison Access . | . . . . . . . Data Cores Recovered . | . . . . . . . Used . | . . . . . . . Hacking Detections 11 | . . . 11 . . . Full Trace Events . | . . . . . . . Feedback Events . | . . . . . . . Feedback Blocked . | . . . . . . . Robot Schematics Acquired . | . . . . . . . Robots Built . | . . . . . . . Matter . | . . . . . . . Time . | . . . . . . . Total Robot Build Rating . | . . . . . . . Part Schematics Acquired 1 | . . . 1 . . . Parts Built . | . . . . . . . Matter . | . . . . . . . Time . | . . . . . . . Total Part Build Rating . | . . . . . . . Parts Repaired . | . . . . . . . Time . | . . . . . . . Parts Recycled . | . . . . . . . Recycled Matter . | . . . . . . . Retrieved Matter . | . . . . . . . Retrieved Components . | . . . . . . . Parts Scanalyzed . | . . . . . . . Part Schematics Acquired . | . . . . . . . Parts Damaged . | . . . . . . . Bothacking | -11 -10 -10 -9 -9 -9 -8 ------------ Run | Scr Mat Min Mat Min Exi Min Used RIF Installer . | . . . . . . . Robots Hacked . | . . . . . . . Non-combat . | . . . . . . . Combat . | . . . . . . . Robot Hacks Applied . | . . . . . . . Relay Couplers Released . | . . . . . . . Robots Rewired . | . . . . . . . Allies Hacked . | . . . . . . . Hacks Repelled . | . . . . . . . Allies | -11 -10 -10 -9 -9 -9 -8 -------- Run | Scr Mat Min Mat Min Exi Min Total Allies 3 | . . 3 . . . . Largest Group 3 | . . 3 . . . . Highest-Rated Group 40 | . . 40 . . . . Highest-Rated Ally 16 | . . 16 . . . . Total Orders . | . . . . . . . Ally Attacks 16 | . . 16 . . . . Total Damage 161 | . . 161 . . . . Kills 2 | . . 2 . . . . Allies Corrupted . | . . . . . . . Allies Melted . | . . . . . . . Intel | -11 -10 -10 -9 -9 -9 -8 ------- Run | Scr Mat Min Mat Min Exi Min Robot Analysis Total . | . . . . . . . Derelict Logs Recovered 1 | . . 1 . . . . Drone Launches . | . . . . . . . Drone Recoveries . | . . . . . . . Exploration | -11 -10 -10 -9 -9 -9 -8 ------------- Run | Scr Mat Min Mat Min Exi Min Turns Passed 2843 | 75 39 714 1096 216 534 169 Spaces Moved 1773 | 30 31 558 576 162 373 43 Core 1 | 1 . . . . . . Treads . | . . . . . . . Legs 11 | 11 . . . . . . Wheels 1761 | 18 31 558 576 162 373 43 Hover . | . . . . . . . Flight . | . . . . . . . Fastest Speed 100 | 100 100 120 120 130 110 160 Average Speed 127 | 112 111 120 127 130 137 160 Slowest Speed 250 | 250 120 120 130 130 160 160 Overloaded Moves . | . . . . . . . Propulsion Burnouts . | . . . . . . . Robots Hopped . | . . . . . . . Cave-ins Triggered . | . . . . . . . Exploration Rate (%) 41 | 5 8 94 56 43 70 13 Regions Visited 6 Branch Regions 4 Pre-discovered Areas 2 | . . 1 . . 1 . Known Exits Taken 1 | . . . 1 . . . Unknown Exits Taken 5 | 1 1 1 . 1 1 . Scrap Searched 1 | . . 1 . . . . Spaces Dug 7 | . . . 7 . . . Terrain Destroyed 47 | . . 30 8 9 . . Melee 1 | . . . 1 . . . Projectile 7 | . . . 7 . . . AOE 39 | . . 30 . 9 . . Terrain Rammed . | . . . . . . . Walls Destroyed . | . . . . . . . Machines Disabled . | . . . . . . . Actions | -11 -10 -10 -9 -9 -9 -8 --------- Run | Scr Mat Min Mat Min Exi Min Total 2112 | 57 35 589 771 164 391 105 Wait 110 | 16 . 11 49 . . 34 Move 1767 | 29 30 557 575 161 372 43 Hop . | . . . . . . . Pick Up 39 | . 1 5 22 . 11 . Fast Attach 6 | 1 . 1 3 . 1 . Attach 9 | 2 . . 2 . . 5 Detach 2 | . . 1 1 . . . Swap 29 | . 2 3 18 1 2 3 Drop 28 | 2 2 2 18 . 3 1 Fire 119 | 7 . 8 82 1 2 19 Melee 2 | . . . 1 1 . . Ram 1 | . . 1 . . . . Kick . | . . . . . . . Crush . | . . . . . . . Escape Stasis . | . . . . . . . Rewire . | . . . . . . . Trap . | . . . . . . . Miscellaneous . | . . . . . . . Route ------- -11/Scrapyard -10/Materials -10/Mines (discovered 2 exits: *Mat x2) -9/Materials (discovered 4 exits: [*Mat x2] / *Min x2) -9/Mines (discovered 2 exits: *Exi / [*Zio]) -9/Exiles -8/Mines History --------- Turn | Location | Event 39 | -11/Scrapyard | Discovered new exit (range 3) 76 | -11/Scrapyard | Entered Materials 81 | -10/Materials | Discovered new exit (range 16) 115 | -10/Materials | Entered Mines 116 | -10/Mines | Learned location of Storage (-8) 127 | -10/Mines | Learned Materials security intel 143 | -10/Mines | Received a Rocket Launcher from a helpful Derelict 206 | -10/Mines | Assisted by bots powering up and referring to "LRC-V3" 305 | -10/Mines | Build established: Mutant 333 | -10/Mines | Discovered new exit (range 5) 456 | -10/Mines | Discovered new exit (range 7) 656 | -10/Mines | Found a damaged Exp. Sensor Array with a note attached 658 | -10/Mines | Found Prototype Device 829 | -10/Mines | Entered Materials 829 | -9/Materials | Evolved 2 slots: Utility x2 1129 | -9/Materials | Discovered new exit (range 6) 1666 | -9/Materials | Discovered new exit (range 13) 1871 | -9/Materials | Identified exit to Mines 1925 | -9/Materials | Entered Mines 2071 | -9/Mines | A Derelict revealed a hidden shortcut to a safe place 2134 | -9/Mines | Deemed a non-threat by the Exiles lab entrance 2136 | -9/Mines | Discovered new exit (range 5) 2141 | -9/Mines | Entered Exiles 2174 | -9/Exiles | Met 8R-AWN 2192 | -9/Exiles | Met EX-HEX 2231 | -9/Exiles | Met EX-BIN 2252 | -9/Exiles | Aligned with FarCom system 2253 | -9/Exiles | Given EX-Vault access code 2283 | -9/Exiles | Opened EX-Vault 2312 | -9/Exiles | Warned to stay clear of 0b10 Research branches 2352 | -9/Exiles | Met EX-DEC 2360 | -9/Exiles | Learned location of Zion (-7) 2570 | -9/Exiles | Discovered new exit (range 10) 2635 | -9/Exiles | Attacked by the Exiles 2675 | -9/Exiles | Entered Mines 2743 | -8/Mines | 7V-RTL came to Exiles' defense 2797 | -8/Mines | Core integrity fell below 50% 2819 | -8/Mines | Build established: Hauler-Mutant 2821 | -8/Mines | Core integrity fell below 20% 2844 | -8/Mines | Destroyed by 7V-RTL with Railgun Last Messages --------------- 02813_ Overheating: Hrd. Light Armor Plating damaged (-41). 02814_ Overheating: Matter decay (-20). 02816_ Overheating: Core damaged (-44). 02817_ Power failure, Imp. Ion Engine shutdown. 02817_ Overheating: System interference. 02817_ Imp. EM Shotgun temporarily disabled. 02817_ Broken Lgt. Treads destroyed. 02820_ Critical hit. 02823_ Penetrated by Slug. 02823_ Slug penetrates Wall. 02824_ Power failure, Imp. Ion Engine shutdown. 02826_ Penetrated by Slug. 02826_ Slug penetrates Wall. 02832_ Humpback destroyed. 02832_ Critical hit. 02835_ Imp. EM Shotgun destroyed. 02838_ Broken Cooling System destroyed. 02838_ Hrd. Light Armor Plating destroyed. 02841_ Penetrated by Slug. 02841_ Lgt. Treads destroyed. Map ----- +----------------------------------------------------+ | ?????????????????????????????????????????????????? | | ?????????????????????????????????????????????????? | | ?????????????????????????????????????????????????? | | ?????????????????????????????????????????????????? | | ?????????????????????????????????????????????????? | | ?????????????????????????????????????????????????? | | ?????????????????????????????????????????????????? | | ?????????????????????????????????????????????????? | | ?????????????????????????????????????????????????? | | ?????????????????????????????????????????????????? | | ?????????????????????????????????????????????????? | | ?????????????????????????????????????????????????? | | ?????????????????????????????????????????????????? | | ?????????????????????????????????????????????????? | | ?????????????????????????????????????????????????? | | ?????????????????????????????????????????????????? | | ?????????????????????????????????????????????????? | | ?????????????????????????????????????????????????? | | ???????????????????????????????#####???#########?? | | ??????????????????????????????## ##??# #?? | | ?????????????#???###??######### ##?# #?? | | ?????????????# ##= ## #?# #?? | | ??????????????? %* """ ### #?? | | ??????????????????!%= !"" """ #?? | | ?????????????????????#Y ]!!" """ #?? | | ?????????????????????##]!@!] ## # ## """ #?? | | ??????????????????????##!/! ;;### ## ## #?? | | ???????????????????????####;; ;#### ##########?? | | ???????????????????????????###### # #??????????? | | ????????????????????????????????????; ;??????????? | | ???????????????????????????########?# #??????????? | | ???????????????????????????# """" #?# #??????????? | | ???????????????????????????# """" #?# #??????????? | | ???????????????????????????# """" ### #??????????? | | ???????????????????????????# #??????????? | | ???????????????????????????# #####??????????? | | ???????????????????????????# T#?????????????? | | ???????????????????????????#########?????????????? | | ?????????????????????????????????????????????????? | | | | | | | | | | | | | | | | | | | | | | | +----------------------------------------------------+ Best States ------------- Heat Dissipation 50 Energy Generation 14 Energy Capacity 280 Matter Stores 300 Matter Capacity 300 Sight Range 16 Terrain Scan Density 10 Armor Coverage 225 Power Shielding 33 Evasion (%) 40 Targeting Accuracy 8 Recoil Reduction 2 Item Schematics ----------------- Hcp. Storage Unit | -9/Materials | Hacked Robot Schematics ------------------ None Fabricated ------------ Nothing Alien Tech Used ----------------- None Achievements -------------- None Challenges ------------ None Game ------ Seed ElectronUtilitySabre Manual? 0 Play Time 00:24:36 Cumulative 175.0 hours Start 2020.11.30 @ 10:27:03 End 2020.11.30 @ 11:00:14 Sessions 1 Manual Loads 0 Difficulty Rogue Special Mode Halloween2020/ForbiddenLore Game No. 106 Rogue 106 Adventurer 0 Explorer 0 Win Type - Total 1 Types 1/0/0/0/0/0/0/0/0 Lore% 57 Gallery% 67 Achievement% 53 Wizard Run 0 Options --------- ASCII 1 Keyboard 1 Movement Vi Keybinds 0 Fullscreen 1 Font 16/Terminus Map View 75x55 Tactical HUD 1 Map Filters NONE Filters NONE Steam 1 RUN: 990f48e3-7440-4c68-bcf1-23eb04a70cb5